{"text_format":"1","workbook":"xlsx","n_sheets":6,"sheets":["Cadastro","Lançamentos","Lista de tarefas","Dashboard","Instruções","Apoio"],"not_rendered":{"charts":4,"images":15,"macros":1,"external_links":1,"defined_names":13,"comments":0,"pivot_tables":3},"unopened":[],"bounds":{"document_bytes":16777216,"sheet_cells":100000,"rows_first":2000,"rows_last":500,"rows_between":2000,"halvings":0,"cell_chars":16384,"cell_head_chars":4096},"cells_cut":0,"cells_raw":0,"read":"whole","date_system":"1900"}

{"sheet":"Cadastro","index":0,"n_rows":105,"n_cols":8,"rows_kept":105,"cut":false,"hidden":false,"merged":[]}
[]
[]
[]
[null,"Área",null,"Nome","Área","Nome + àrea",null,"Nome da Atividade"]
[null,"Diretoria",null,"Anderson","Diretoria",{"$f":"IF(OR(TbNome[[#This Row],[Nome]]=\"\",TbNome[[#This Row],[Área]]=\"\"),\"\",TbNome[[#This Row],[Nome]]&\" - \"&TbNome[[#This Row],[Área]])","v":"Anderson - Diretoria"},null,"Emissão de certificado"]
[null,"Marketing",null,"José","Marketing",{"$f":"IF(OR(TbNome[[#This Row],[Nome]]=\"\",TbNome[[#This Row],[Área]]=\"\"),\"\",TbNome[[#This Row],[Nome]]&\" - \"&TbNome[[#This Row],[Área]])","v":"José - Marketing"},null,"Lançamento de OS"]
[null,"Financeiro",null,"Maria","Financeiro",{"$f":"IF(OR(TbNome[[#This Row],[Nome]]=\"\",TbNome[[#This Row],[Área]]=\"\"),\"\",TbNome[[#This Row],[Nome]]&\" - \"&TbNome[[#This Row],[Área]])","v":"Maria - Financeiro"},null,"Atividade 3"]
[null,null,null,"Paulo","Financeiro",{"$f":"IF(OR(TbNome[[#This Row],[Nome]]=\"\",TbNome[[#This Row],[Área]]=\"\"),\"\",TbNome[[#This Row],[Nome]]&\" - \"&TbNome[[#This Row],[Área]])","v":"Paulo - Financeiro"},null,"Atividade 4"]
[null,null,null,null,null,{"$f":"IF(OR(TbNome[[#This Row],[Nome]]=\"\",TbNome[[#This Row],[Área]]=\"\"),\"\",TbNome[[#This Row],[Nome]]&\" - \"&TbNome[[#This Row],[Área]])","v":""},null,"Atividade 5"]
[null,null,null,null,null,{"$f":"IF(OR(TbNome[[#This Row],[Nome]]=\"\",TbNome[[#This Row],[Área]]=\"\"),\"\",TbNome[[#This Row],[Nome]]&\" - \"&TbNome[[#This Row],[Área]])","v":""},null,"Atividade 6"]
[null,null,null,null,null,{"$f":"IF(OR(TbNome[[#This Row],[Nome]]=\"\",TbNome[[#This Row],[Área]]=\"\"),\"\",TbNome[[#This Row],[Nome]]&\" - \"&TbNome[[#This Row],[Área]])","v":""},null,"Atividade 7"]
[null,null,null,null,null,{"$f":"IF(OR(TbNome[[#This Row],[Nome]]=\"\",TbNome[[#This Row],[Área]]=\"\"),\"\",TbNome[[#This Row],[Nome]]&\" - \"&TbNome[[#This Row],[Área]])","v":""},null,"Atividade 8"]
[null,null,null,null,null,{"$f":"IF(OR(TbNome[[#This Row],[Nome]]=\"\",TbNome[[#This Row],[Área]]=\"\"),\"\",TbNome[[#This Row],[Nome]]&\" - \"&TbNome[[#This Row],[Área]])","v":""},null,"Atividade 9"]
[null,null,null,null,null,{"$f":"IF(OR(TbNome[[#This Row],[Nome]]=\"\",TbNome[[#This Row],[Área]]=\"\"),\"\",TbNome[[#This Row],[Nome]]&\" - \"&TbNome[[#This Row],[Área]])","v":""},null,"Atividade 10"]
[null,null,null,null,null,{"$f":"IF(OR(TbNome[[#This Row],[Nome]]=\"\",TbNome[[#This Row],[Área]]=\"\"),\"\",TbNome[[#This Row],[Nome]]&\" - \"&TbNome[[#This Row],[Área]])","v":""},null,"Atividade 11"]
[null,null,null,null,null,{"$f":"IF(OR(TbNome[[#This Row],[Nome]]=\"\",TbNome[[#This Row],[Área]]=\"\"),\"\",TbNome[[#This Row],[Nome]]&\" - \"&TbNome[[#This Row],[Área]])","v":""}]
[null,null,null,null,null,{"$f":"IF(OR(TbNome[[#This Row],[Nome]]=\"\",TbNome[[#This Row],[Área]]=\"\"),\"\",TbNome[[#This Row],[Nome]]&\" - \"&TbNome[[#This Row],[Área]])","v":""}]
[null,null,null,null,null,{"$f":"IF(OR(TbNome[[#This Row],[Nome]]=\"\",TbNome[[#This Row],[Área]]=\"\"),\"\",TbNome[[#This Row],[Nome]]&\" - \"&TbNome[[#This Row],[Área]])","v":""}]
[null,null,null,null,null,{"$f":"IF(OR(TbNome[[#This Row],[Nome]]=\"\",TbNome[[#This Row],[Área]]=\"\"),\"\",TbNome[[#This Row],[Nome]]&\" - \"&TbNome[[#This Row],[Área]])","v":""}]
[null,null,null,null,null,{"$f":"IF(OR(TbNome[[#This Row],[Nome]]=\"\",TbNome[[#This Row],[Área]]=\"\"),\"\",TbNome[[#This Row],[Nome]]&\" - \"&TbNome[[#This Row],[Área]])","v":""}]
[null,null,null,null,null,{"$f":"IF(OR(TbNome[[#This Row],[Nome]]=\"\",TbNome[[#This Row],[Área]]=\"\"),\"\",TbNome[[#This Row],[Nome]]&\" - \"&TbNome[[#This Row],[Área]])","v":""}]
[null,null,null,null,null,{"$f":"IF(OR(TbNome[[#This Row],[Nome]]=\"\",TbNome[[#This Row],[Área]]=\"\"),\"\",TbNome[[#This Row],[Nome]]&\" - \"&TbNome[[#This Row],[Área]])","v":""}]
[null,null,null,null,null,{"$f":"IF(OR(TbNome[[#This Row],[Nome]]=\"\",TbNome[[#This Row],[Área]]=\"\"),\"\",TbNome[[#This Row],[Nome]]&\" - \"&TbNome[[#This Row],[Área]])","v":""}]
[null,null,null,null,null,{"$f":"IF(OR(TbNome[[#This Row],[Nome]]=\"\",TbNome[[#This Row],[Área]]=\"\"),\"\",TbNome[[#This Row],[Nome]]&\" - \"&TbNome[[#This Row],[Área]])","v":""}]
[]
[]
[]
[]
[]
[]
[]
[]
[]
[]
[]
[]
[]
[]
[]
[]
[]
[]
[]
[]
[]
[]
[]
[]
[]
[]
[]
[]
[]
[]
[]
[]
[]
[]
[]
[]
[]
[]
[]
[]
[]
[]
[]
[]
[]
[]
[]
[]
[]
[]
[]
[]
[]
[]
[]
[]
[]
[]
[]
[]
[]
[]
[]
[]
[]
[]
[]
[]
[]
[]
[]
[]
[]
[]
[]
[]
[]
[]
[]
[]
[null,null,null,null,null,null,null,"Limite de cadastro"]

{"sheet":"Lançamentos","index":1,"n_rows":18,"n_cols":12,"rows_kept":18,"cut":false,"hidden":false,"merged":[]}
[]
[]
[]
[null,"Nome da atividade","Descrição da atividade","Funcionário responsável","Data final programada","Data início","Data final","Status","Observações","Mês","Ano","Área"]
[null,"Emissão de certificado",null,"Maria - Financeiro","2023-01-01",null,null,{"$f":"IF(AND(TbBase[[#This Row],[Data final programada]]=\"\",TbBase[[#This Row],[Data início]]=\"\",TbBase[[#This Row],[Data final]]=\"\"),\"\",\nIF(AND(TbBase[[#This Row],[Data final programada]]<>\"\",TbBase[[#This Row],[Data início]]=\"\",TbBase[[#This Row],[Data final]]=\"\",TODAY()<=TbBase[[#This Row],[Data final programada]]),\"Não iniciado\",\nIF(AND(TbBase[[#This Row],[Data final programada]]<>\"\",TbBase[[#This Row],[Data início]]<>\"\",TbBase[[#This Row],[Data final]]=\"\",TODAY()<=TbBase[[#This Row],[Data final programada]]),\"Em andamento\",\nIF(AND(TbBase[[#This Row],[Data final programada]]<>\"\",TbBase[[#This Row],[Data final]]=\"\",TODAY()>TbBase[[#This Row],[Data final programada]]),\"Atrasado\",\nIF(AND(TbBase[[#This Row],[Data final programada]]<>\"\",TbBase[[#This Row],[Data final]]<>\"\",TbBase[[#This Row],[Data final]]>TbBase[[#This Row],[Data final programada]]),\"Finalizado em atraso\",\nIF(AND(TbBase[[#This Row],[Data final programada]]<>\"\",TbBase[[#This Row],[Data final]]<>\"\",TbBase[[#This Row],[Data final]]<=TbBase[[#This Row],[Data final programada]]),\"Finalizado no prazo\"))))))","v":"Atrasado"},null,{"$f":"IF(AND(TbBase[[#This Row],[Data final programada]]=\"\",TbBase[[#This Row],[Data início]]=\"\",TbBase[[#This Row],[Data final]]=\"\"),\"\",\nIF(AND(TbBase[[#This Row],[Data final programada]]<>\"\",TbBase[[#This Row],[Data início]]=\"\",TbBase[[#This Row],[Data final]]=\"\"),PROPER(TEXT(TbBase[[#This Row],[Data final programada]],\"mmm\")),\nIF(AND(TbBase[[#This Row],[Data final programada]]<>\"\",TbBase[[#This Row],[Data início]]<>\"\",TbBase[[#This Row],[Data final]]=\"\"),PROPER(TEXT(TbBase[[#This Row],[Data início]],\"mmm\")),\nIF(AND(TbBase[[#This Row],[Data final programada]]<>\"\",TbBase[[#This Row],[Data final]]<>\"\"),PROPER(TEXT(TbBase[[#This Row],[Data final]],\"mmm\"))))))","v":"Jan"},{"$f":"IF(AND(TbBase[[#This Row],[Data final programada]]=\"\",TbBase[[#This Row],[Data início]]=\"\",TbBase[[#This Row],[Data final]]=\"\"),\"\",\nIF(AND(TbBase[[#This Row],[Data final programada]]<>\"\",TbBase[[#This Row],[Data início]]=\"\",TbBase[[#This Row],[Data final]]=\"\"),YEAR(TbBase[[#This Row],[Data final programada]]),\nIF(AND(TbBase[[#This Row],[Data final programada]]<>\"\",TbBase[[#This Row],[Data início]]<>\"\",TbBase[[#This Row],[Data final]]=\"\"),YEAR(TbBase[[#This Row],[Data início]]),\nIF(AND(TbBase[[#This Row],[Data final programada]]<>\"\",TbBase[[#This Row],[Data final]]<>\"\"),YEAR(TbBase[[#This Row],[Data final]])))))","v":2023},{"$f":"IF(TbBase[[#This Row],[Funcionário responsável]]=\"\",\"\",INDEX(TbNome[],MATCH(TbBase[[#This Row],[Funcionário responsável]],TbNome[Nome + àrea],0),2))","v":"Financeiro"}]
[null,"Lançamento de OS",null,"Maria - Financeiro","2023-02-01",null,null,{"$f":"IF(AND(TbBase[[#This Row],[Data final programada]]=\"\",TbBase[[#This Row],[Data início]]=\"\",TbBase[[#This Row],[Data final]]=\"\"),\"\",\nIF(AND(TbBase[[#This Row],[Data final programada]]<>\"\",TbBase[[#This Row],[Data início]]=\"\",TbBase[[#This Row],[Data final]]=\"\",TODAY()<=TbBase[[#This Row],[Data final programada]]),\"Não iniciado\",\nIF(AND(TbBase[[#This Row],[Data final programada]]<>\"\",TbBase[[#This Row],[Data início]]<>\"\",TbBase[[#This Row],[Data final]]=\"\",TODAY()<=TbBase[[#This Row],[Data final programada]]),\"Em andamento\",\nIF(AND(TbBase[[#This Row],[Data final programada]]<>\"\",TbBase[[#This Row],[Data final]]=\"\",TODAY()>TbBase[[#This Row],[Data final programada]]),\"Atrasado\",\nIF(AND(TbBase[[#This Row],[Data final programada]]<>\"\",TbBase[[#This Row],[Data final]]<>\"\",TbBase[[#This Row],[Data final]]>TbBase[[#This Row],[Data final programada]]),\"Finalizado em atraso\",\nIF(AND(TbBase[[#This Row],[Data final programada]]<>\"\",TbBase[[#This Row],[Data final]]<>\"\",TbBase[[#This Row],[Data final]]<=TbBase[[#This Row],[Data final programada]]),\"Finalizado no prazo\"))))))","v":"Atrasado"},null,{"$f":"IF(AND(TbBase[[#This Row],[Data final programada]]=\"\",TbBase[[#This Row],[Data início]]=\"\",TbBase[[#This Row],[Data final]]=\"\"),\"\",\nIF(AND(TbBase[[#This Row],[Data final programada]]<>\"\",TbBase[[#This Row],[Data início]]=\"\",TbBase[[#This Row],[Data final]]=\"\"),PROPER(TEXT(TbBase[[#This Row],[Data final programada]],\"mmm\")),\nIF(AND(TbBase[[#This Row],[Data final programada]]<>\"\",TbBase[[#This Row],[Data início]]<>\"\",TbBase[[#This Row],[Data final]]=\"\"),PROPER(TEXT(TbBase[[#This Row],[Data início]],\"mmm\")),\nIF(AND(TbBase[[#This Row],[Data final programada]]<>\"\",TbBase[[#This Row],[Data final]]<>\"\"),PROPER(TEXT(TbBase[[#This Row],[Data final]],\"mmm\"))))))","v":"Fev"},{"$f":"IF(AND(TbBase[[#This Row],[Data final programada]]=\"\",TbBase[[#This Row],[Data início]]=\"\",TbBase[[#This Row],[Data final]]=\"\"),\"\",\nIF(AND(TbBase[[#This Row],[Data final programada]]<>\"\",TbBase[[#This Row],[Data início]]=\"\",TbBase[[#This Row],[Data final]]=\"\"),YEAR(TbBase[[#This Row],[Data final programada]]),\nIF(AND(TbBase[[#This Row],[Data final programada]]<>\"\",TbBase[[#This Row],[Data início]]<>\"\",TbBase[[#This Row],[Data final]]=\"\"),YEAR(TbBase[[#This Row],[Data início]]),\nIF(AND(TbBase[[#This Row],[Data final programada]]<>\"\",TbBase[[#This Row],[Data final]]<>\"\"),YEAR(TbBase[[#This Row],[Data final]])))))","v":2023},{"$f":"IF(TbBase[[#This Row],[Funcionário responsável]]=\"\",\"\",INDEX(TbNome[],MATCH(TbBase[[#This Row],[Funcionário responsável]],TbNome[Nome + àrea],0),2))","v":"Financeiro"}]
[null,"Emissão de certificado",null,"Anderson - Diretoria","2023-03-01","2023-11-01",null,{"$f":"IF(AND(TbBase[[#This Row],[Data final programada]]=\"\",TbBase[[#This Row],[Data início]]=\"\",TbBase[[#This Row],[Data final]]=\"\"),\"\",\nIF(AND(TbBase[[#This Row],[Data final programada]]<>\"\",TbBase[[#This Row],[Data início]]=\"\",TbBase[[#This Row],[Data final]]=\"\",TODAY()<=TbBase[[#This Row],[Data final programada]]),\"Não iniciado\",\nIF(AND(TbBase[[#This Row],[Data final programada]]<>\"\",TbBase[[#This Row],[Data início]]<>\"\",TbBase[[#This Row],[Data final]]=\"\",TODAY()<=TbBase[[#This Row],[Data final programada]]),\"Em andamento\",\nIF(AND(TbBase[[#This Row],[Data final programada]]<>\"\",TbBase[[#This Row],[Data final]]=\"\",TODAY()>TbBase[[#This Row],[Data final programada]]),\"Atrasado\",\nIF(AND(TbBase[[#This Row],[Data final programada]]<>\"\",TbBase[[#This Row],[Data final]]<>\"\",TbBase[[#This Row],[Data final]]>TbBase[[#This Row],[Data final programada]]),\"Finalizado em atraso\",\nIF(AND(TbBase[[#This Row],[Data final programada]]<>\"\",TbBase[[#This Row],[Data final]]<>\"\",TbBase[[#This Row],[Data final]]<=TbBase[[#This Row],[Data final programada]]),\"Finalizado no prazo\"))))))","v":"Atrasado"},null,{"$f":"IF(AND(TbBase[[#This Row],[Data final programada]]=\"\",TbBase[[#This Row],[Data início]]=\"\",TbBase[[#This Row],[Data final]]=\"\"),\"\",\nIF(AND(TbBase[[#This Row],[Data final programada]]<>\"\",TbBase[[#This Row],[Data início]]=\"\",TbBase[[#This Row],[Data final]]=\"\"),PROPER(TEXT(TbBase[[#This Row],[Data final programada]],\"mmm\")),\nIF(AND(TbBase[[#This Row],[Data final programada]]<>\"\",TbBase[[#This Row],[Data início]]<>\"\",TbBase[[#This Row],[Data final]]=\"\"),PROPER(TEXT(TbBase[[#This Row],[Data início]],\"mmm\")),\nIF(AND(TbBase[[#This Row],[Data final programada]]<>\"\",TbBase[[#This Row],[Data final]]<>\"\"),PROPER(TEXT(TbBase[[#This Row],[Data final]],\"mmm\"))))))","v":"Nov"},{"$f":"IF(AND(TbBase[[#This Row],[Data final programada]]=\"\",TbBase[[#This Row],[Data início]]=\"\",TbBase[[#This Row],[Data final]]=\"\"),\"\",\nIF(AND(TbBase[[#This Row],[Data final programada]]<>\"\",TbBase[[#This Row],[Data início]]=\"\",TbBase[[#This Row],[Data final]]=\"\"),YEAR(TbBase[[#This Row],[Data final programada]]),\nIF(AND(TbBase[[#This Row],[Data final programada]]<>\"\",TbBase[[#This Row],[Data início]]<>\"\",TbBase[[#This Row],[Data final]]=\"\"),YEAR(TbBase[[#This Row],[Data início]]),\nIF(AND(TbBase[[#This Row],[Data final programada]]<>\"\",TbBase[[#This Row],[Data final]]<>\"\"),YEAR(TbBase[[#This Row],[Data final]])))))","v":2023},{"$f":"IF(TbBase[[#This Row],[Funcionário responsável]]=\"\",\"\",INDEX(TbNome[],MATCH(TbBase[[#This Row],[Funcionário responsável]],TbNome[Nome + àrea],0),2))","v":"Diretoria"}]
[null,"Atividade 4",null,"Maria - Financeiro","2023-04-01","2023-04-01","2023-04-05",{"$f":"IF(AND(TbBase[[#This Row],[Data final programada]]=\"\",TbBase[[#This Row],[Data início]]=\"\",TbBase[[#This Row],[Data final]]=\"\"),\"\",\nIF(AND(TbBase[[#This Row],[Data final programada]]<>\"\",TbBase[[#This Row],[Data início]]=\"\",TbBase[[#This Row],[Data final]]=\"\",TODAY()<=TbBase[[#This Row],[Data final programada]]),\"Não iniciado\",\nIF(AND(TbBase[[#This Row],[Data final programada]]<>\"\",TbBase[[#This Row],[Data início]]<>\"\",TbBase[[#This Row],[Data final]]=\"\",TODAY()<=TbBase[[#This Row],[Data final programada]]),\"Em andamento\",\nIF(AND(TbBase[[#This Row],[Data final programada]]<>\"\",TbBase[[#This Row],[Data final]]=\"\",TODAY()>TbBase[[#This Row],[Data final programada]]),\"Atrasado\",\nIF(AND(TbBase[[#This Row],[Data final programada]]<>\"\",TbBase[[#This Row],[Data final]]<>\"\",TbBase[[#This Row],[Data final]]>TbBase[[#This Row],[Data final programada]]),\"Finalizado em atraso\",\nIF(AND(TbBase[[#This Row],[Data final programada]]<>\"\",TbBase[[#This Row],[Data final]]<>\"\",TbBase[[#This Row],[Data final]]<=TbBase[[#This Row],[Data final programada]]),\"Finalizado no prazo\"))))))","v":"Finalizado em atraso"},null,{"$f":"IF(AND(TbBase[[#This Row],[Data final programada]]=\"\",TbBase[[#This Row],[Data início]]=\"\",TbBase[[#This Row],[Data final]]=\"\"),\"\",\nIF(AND(TbBase[[#This Row],[Data final programada]]<>\"\",TbBase[[#This Row],[Data início]]=\"\",TbBase[[#This Row],[Data final]]=\"\"),PROPER(TEXT(TbBase[[#This Row],[Data final programada]],\"mmm\")),\nIF(AND(TbBase[[#This Row],[Data final programada]]<>\"\",TbBase[[#This Row],[Data início]]<>\"\",TbBase[[#This Row],[Data final]]=\"\"),PROPER(TEXT(TbBase[[#This Row],[Data início]],\"mmm\")),\nIF(AND(TbBase[[#This Row],[Data final programada]]<>\"\",TbBase[[#This Row],[Data final]]<>\"\"),PROPER(TEXT(TbBase[[#This Row],[Data final]],\"mmm\"))))))","v":"Abr"},{"$f":"IF(AND(TbBase[[#This Row],[Data final programada]]=\"\",TbBase[[#This Row],[Data início]]=\"\",TbBase[[#This Row],[Data final]]=\"\"),\"\",\nIF(AND(TbBase[[#This Row],[Data final programada]]<>\"\",TbBase[[#This Row],[Data início]]=\"\",TbBase[[#This Row],[Data final]]=\"\"),YEAR(TbBase[[#This Row],[Data final programada]]),\nIF(AND(TbBase[[#This Row],[Data final programada]]<>\"\",TbBase[[#This Row],[Data início]]<>\"\",TbBase[[#This Row],[Data final]]=\"\"),YEAR(TbBase[[#This Row],[Data início]]),\nIF(AND(TbBase[[#This Row],[Data final programada]]<>\"\",TbBase[[#This Row],[Data final]]<>\"\"),YEAR(TbBase[[#This Row],[Data final]])))))","v":2023},{"$f":"IF(TbBase[[#This Row],[Funcionário responsável]]=\"\",\"\",INDEX(TbNome[],MATCH(TbBase[[#This Row],[Funcionário responsável]],TbNome[Nome + àrea],0),2))","v":"Financeiro"}]
[null,"Atividade 3",null,"Maria - Financeiro","2023-05-01","2023-05-01","2023-05-01",{"$f":"IF(AND(TbBase[[#This Row],[Data final programada]]=\"\",TbBase[[#This Row],[Data início]]=\"\",TbBase[[#This Row],[Data final]]=\"\"),\"\",\nIF(AND(TbBase[[#This Row],[Data final programada]]<>\"\",TbBase[[#This Row],[Data início]]=\"\",TbBase[[#This Row],[Data final]]=\"\",TODAY()<=TbBase[[#This Row],[Data final programada]]),\"Não iniciado\",\nIF(AND(TbBase[[#This Row],[Data final programada]]<>\"\",TbBase[[#This Row],[Data início]]<>\"\",TbBase[[#This Row],[Data final]]=\"\",TODAY()<=TbBase[[#This Row],[Data final programada]]),\"Em andamento\",\nIF(AND(TbBase[[#This Row],[Data final programada]]<>\"\",TbBase[[#This Row],[Data final]]=\"\",TODAY()>TbBase[[#This Row],[Data final programada]]),\"Atrasado\",\nIF(AND(TbBase[[#This Row],[Data final programada]]<>\"\",TbBase[[#This Row],[Data final]]<>\"\",TbBase[[#This Row],[Data final]]>TbBase[[#This Row],[Data final programada]]),\"Finalizado em atraso\",\nIF(AND(TbBase[[#This Row],[Data final programada]]<>\"\",TbBase[[#This Row],[Data final]]<>\"\",TbBase[[#This Row],[Data final]]<=TbBase[[#This Row],[Data final programada]]),\"Finalizado no prazo\"))))))","v":"Finalizado no prazo"},null,{"$f":"IF(AND(TbBase[[#This Row],[Data final programada]]=\"\",TbBase[[#This Row],[Data início]]=\"\",TbBase[[#This Row],[Data final]]=\"\"),\"\",\nIF(AND(TbBase[[#This Row],[Data final programada]]<>\"\",TbBase[[#This Row],[Data início]]=\"\",TbBase[[#This Row],[Data final]]=\"\"),PROPER(TEXT(TbBase[[#This Row],[Data final programada]],\"mmm\")),\nIF(AND(TbBase[[#This Row],[Data final programada]]<>\"\",TbBase[[#This Row],[Data início]]<>\"\",TbBase[[#This Row],[Data final]]=\"\"),PROPER(TEXT(TbBase[[#This Row],[Data início]],\"mmm\")),\nIF(AND(TbBase[[#This Row],[Data final programada]]<>\"\",TbBase[[#This Row],[Data final]]<>\"\"),PROPER(TEXT(TbBase[[#This Row],[Data final]],\"mmm\"))))))","v":"Mai"},{"$f":"IF(AND(TbBase[[#This Row],[Data final programada]]=\"\",TbBase[[#This Row],[Data início]]=\"\",TbBase[[#This Row],[Data final]]=\"\"),\"\",\nIF(AND(TbBase[[#This Row],[Data final programada]]<>\"\",TbBase[[#This Row],[Data início]]=\"\",TbBase[[#This Row],[Data final]]=\"\"),YEAR(TbBase[[#This Row],[Data final programada]]),\nIF(AND(TbBase[[#This Row],[Data final programada]]<>\"\",TbBase[[#This Row],[Data início]]<>\"\",TbBase[[#This Row],[Data final]]=\"\"),YEAR(TbBase[[#This Row],[Data início]]),\nIF(AND(TbBase[[#This Row],[Data final programada]]<>\"\",TbBase[[#This Row],[Data final]]<>\"\"),YEAR(TbBase[[#This Row],[Data final]])))))","v":2023},{"$f":"IF(TbBase[[#This Row],[Funcionário responsável]]=\"\",\"\",INDEX(TbNome[],MATCH(TbBase[[#This Row],[Funcionário responsável]],TbNome[Nome + àrea],0),2))","v":"Financeiro"}]
[null,"Atividade 5",null,"Maria - Financeiro","2023-06-01","2023-06-01","2023-06-01",{"$f":"IF(AND(TbBase[[#This Row],[Data final programada]]=\"\",TbBase[[#This Row],[Data início]]=\"\",TbBase[[#This Row],[Data final]]=\"\"),\"\",\nIF(AND(TbBase[[#This Row],[Data final programada]]<>\"\",TbBase[[#This Row],[Data início]]=\"\",TbBase[[#This Row],[Data final]]=\"\",TODAY()<=TbBase[[#This Row],[Data final programada]]),\"Não iniciado\",\nIF(AND(TbBase[[#This Row],[Data final programada]]<>\"\",TbBase[[#This Row],[Data início]]<>\"\",TbBase[[#This Row],[Data final]]=\"\",TODAY()<=TbBase[[#This Row],[Data final programada]]),\"Em andamento\",\nIF(AND(TbBase[[#This Row],[Data final programada]]<>\"\",TbBase[[#This Row],[Data final]]=\"\",TODAY()>TbBase[[#This Row],[Data final programada]]),\"Atrasado\",\nIF(AND(TbBase[[#This Row],[Data final programada]]<>\"\",TbBase[[#This Row],[Data final]]<>\"\",TbBase[[#This Row],[Data final]]>TbBase[[#This Row],[Data final programada]]),\"Finalizado em atraso\",\nIF(AND(TbBase[[#This Row],[Data final programada]]<>\"\",TbBase[[#This Row],[Data final]]<>\"\",TbBase[[#This Row],[Data final]]<=TbBase[[#This Row],[Data final programada]]),\"Finalizado no prazo\"))))))","v":"Finalizado no prazo"},null,{"$f":"IF(AND(TbBase[[#This Row],[Data final programada]]=\"\",TbBase[[#This Row],[Data início]]=\"\",TbBase[[#This Row],[Data final]]=\"\"),\"\",\nIF(AND(TbBase[[#This Row],[Data final programada]]<>\"\",TbBase[[#This Row],[Data início]]=\"\",TbBase[[#This Row],[Data final]]=\"\"),PROPER(TEXT(TbBase[[#This Row],[Data final programada]],\"mmm\")),\nIF(AND(TbBase[[#This Row],[Data final programada]]<>\"\",TbBase[[#This Row],[Data início]]<>\"\",TbBase[[#This Row],[Data final]]=\"\"),PROPER(TEXT(TbBase[[#This Row],[Data início]],\"mmm\")),\nIF(AND(TbBase[[#This Row],[Data final programada]]<>\"\",TbBase[[#This Row],[Data final]]<>\"\"),PROPER(TEXT(TbBase[[#This Row],[Data final]],\"mmm\"))))))","v":"Jun"},{"$f":"IF(AND(TbBase[[#This Row],[Data final programada]]=\"\",TbBase[[#This Row],[Data início]]=\"\",TbBase[[#This Row],[Data final]]=\"\"),\"\",\nIF(AND(TbBase[[#This Row],[Data final programada]]<>\"\",TbBase[[#This Row],[Data início]]=\"\",TbBase[[#This Row],[Data final]]=\"\"),YEAR(TbBase[[#This Row],[Data final programada]]),\nIF(AND(TbBase[[#This Row],[Data final programada]]<>\"\",TbBase[[#This Row],[Data início]]<>\"\",TbBase[[#This Row],[Data final]]=\"\"),YEAR(TbBase[[#This Row],[Data início]]),\nIF(AND(TbBase[[#This Row],[Data final programada]]<>\"\",TbBase[[#This Row],[Data final]]<>\"\"),YEAR(TbBase[[#This Row],[Data final]])))))","v":2023},{"$f":"IF(TbBase[[#This Row],[Funcionário responsável]]=\"\",\"\",INDEX(TbNome[],MATCH(TbBase[[#This Row],[Funcionário responsável]],TbNome[Nome + àrea],0),2))","v":"Financeiro"}]
[null,"Emissão de certificado",null,"Anderson - Diretoria","2023-07-01","2023-06-01",null,{"$f":"IF(AND(TbBase[[#This Row],[Data final programada]]=\"\",TbBase[[#This Row],[Data início]]=\"\",TbBase[[#This Row],[Data final]]=\"\"),\"\",\nIF(AND(TbBase[[#This Row],[Data final programada]]<>\"\",TbBase[[#This Row],[Data início]]=\"\",TbBase[[#This Row],[Data final]]=\"\",TODAY()<=TbBase[[#This Row],[Data final programada]]),\"Não iniciado\",\nIF(AND(TbBase[[#This Row],[Data final programada]]<>\"\",TbBase[[#This Row],[Data início]]<>\"\",TbBase[[#This Row],[Data final]]=\"\",TODAY()<=TbBase[[#This Row],[Data final programada]]),\"Em andamento\",\nIF(AND(TbBase[[#This Row],[Data final programada]]<>\"\",TbBase[[#This Row],[Data final]]=\"\",TODAY()>TbBase[[#This Row],[Data final programada]]),\"Atrasado\",\nIF(AND(TbBase[[#This Row],[Data final programada]]<>\"\",TbBase[[#This Row],[Data final]]<>\"\",TbBase[[#This Row],[Data final]]>TbBase[[#This Row],[Data final programada]]),\"Finalizado em atraso\",\nIF(AND(TbBase[[#This Row],[Data final programada]]<>\"\",TbBase[[#This Row],[Data final]]<>\"\",TbBase[[#This Row],[Data final]]<=TbBase[[#This Row],[Data final programada]]),\"Finalizado no prazo\"))))))","v":"Atrasado"},null,{"$f":"IF(AND(TbBase[[#This Row],[Data final programada]]=\"\",TbBase[[#This Row],[Data início]]=\"\",TbBase[[#This Row],[Data final]]=\"\"),\"\",\nIF(AND(TbBase[[#This Row],[Data final programada]]<>\"\",TbBase[[#This Row],[Data início]]=\"\",TbBase[[#This Row],[Data final]]=\"\"),PROPER(TEXT(TbBase[[#This Row],[Data final programada]],\"mmm\")),\nIF(AND(TbBase[[#This Row],[Data final programada]]<>\"\",TbBase[[#This Row],[Data início]]<>\"\",TbBase[[#This Row],[Data final]]=\"\"),PROPER(TEXT(TbBase[[#This Row],[Data início]],\"mmm\")),\nIF(AND(TbBase[[#This Row],[Data final programada]]<>\"\",TbBase[[#This Row],[Data final]]<>\"\"),PROPER(TEXT(TbBase[[#This Row],[Data final]],\"mmm\"))))))","v":"Jun"},{"$f":"IF(AND(TbBase[[#This Row],[Data final programada]]=\"\",TbBase[[#This Row],[Data início]]=\"\",TbBase[[#This Row],[Data final]]=\"\"),\"\",\nIF(AND(TbBase[[#This Row],[Data final programada]]<>\"\",TbBase[[#This Row],[Data início]]=\"\",TbBase[[#This Row],[Data final]]=\"\"),YEAR(TbBase[[#This Row],[Data final programada]]),\nIF(AND(TbBase[[#This Row],[Data final programada]]<>\"\",TbBase[[#This Row],[Data início]]<>\"\",TbBase[[#This Row],[Data final]]=\"\"),YEAR(TbBase[[#This Row],[Data início]]),\nIF(AND(TbBase[[#This Row],[Data final programada]]<>\"\",TbBase[[#This Row],[Data final]]<>\"\"),YEAR(TbBase[[#This Row],[Data final]])))))","v":2023},{"$f":"IF(TbBase[[#This Row],[Funcionário responsável]]=\"\",\"\",INDEX(TbNome[],MATCH(TbBase[[#This Row],[Funcionário responsável]],TbNome[Nome + àrea],0),2))","v":"Diretoria"}]
[null,"Atividade 5",null,"Anderson - Diretoria","2023-08-01","2023-06-01",null,{"$f":"IF(AND(TbBase[[#This Row],[Data final programada]]=\"\",TbBase[[#This Row],[Data início]]=\"\",TbBase[[#This Row],[Data final]]=\"\"),\"\",\nIF(AND(TbBase[[#This Row],[Data final programada]]<>\"\",TbBase[[#This Row],[Data início]]=\"\",TbBase[[#This Row],[Data final]]=\"\",TODAY()<=TbBase[[#This Row],[Data final programada]]),\"Não iniciado\",\nIF(AND(TbBase[[#This Row],[Data final programada]]<>\"\",TbBase[[#This Row],[Data início]]<>\"\",TbBase[[#This Row],[Data final]]=\"\",TODAY()<=TbBase[[#This Row],[Data final programada]]),\"Em andamento\",\nIF(AND(TbBase[[#This Row],[Data final programada]]<>\"\",TbBase[[#This Row],[Data final]]=\"\",TODAY()>TbBase[[#This Row],[Data final programada]]),\"Atrasado\",\nIF(AND(TbBase[[#This Row],[Data final programada]]<>\"\",TbBase[[#This Row],[Data final]]<>\"\",TbBase[[#This Row],[Data final]]>TbBase[[#This Row],[Data final programada]]),\"Finalizado em atraso\",\nIF(AND(TbBase[[#This Row],[Data final programada]]<>\"\",TbBase[[#This Row],[Data final]]<>\"\",TbBase[[#This Row],[Data final]]<=TbBase[[#This Row],[Data final programada]]),\"Finalizado no prazo\"))))))","v":"Atrasado"},null,{"$f":"IF(AND(TbBase[[#This Row],[Data final programada]]=\"\",TbBase[[#This Row],[Data início]]=\"\",TbBase[[#This Row],[Data final]]=\"\"),\"\",\nIF(AND(TbBase[[#This Row],[Data final programada]]<>\"\",TbBase[[#This Row],[Data início]]=\"\",TbBase[[#This Row],[Data final]]=\"\"),PROPER(TEXT(TbBase[[#This Row],[Data final programada]],\"mmm\")),\nIF(AND(TbBase[[#This Row],[Data final programada]]<>\"\",TbBase[[#This Row],[Data início]]<>\"\",TbBase[[#This Row],[Data final]]=\"\"),PROPER(TEXT(TbBase[[#This Row],[Data início]],\"mmm\")),\nIF(AND(TbBase[[#This Row],[Data final programada]]<>\"\",TbBase[[#This Row],[Data final]]<>\"\"),PROPER(TEXT(TbBase[[#This Row],[Data final]],\"mmm\"))))))","v":"Jun"},{"$f":"IF(AND(TbBase[[#This Row],[Data final programada]]=\"\",TbBase[[#This Row],[Data início]]=\"\",TbBase[[#This Row],[Data final]]=\"\"),\"\",\nIF(AND(TbBase[[#This Row],[Data final programada]]<>\"\",TbBase[[#This Row],[Data início]]=\"\",TbBase[[#This Row],[Data final]]=\"\"),YEAR(TbBase[[#This Row],[Data final programada]]),\nIF(AND(TbBase[[#This Row],[Data final programada]]<>\"\",TbBase[[#This Row],[Data início]]<>\"\",TbBase[[#This Row],[Data final]]=\"\"),YEAR(TbBase[[#This Row],[Data início]]),\nIF(AND(TbBase[[#This Row],[Data final programada]]<>\"\",TbBase[[#This Row],[Data final]]<>\"\"),YEAR(TbBase[[#This Row],[Data final]])))))","v":2023},{"$f":"IF(TbBase[[#This Row],[Funcionário responsável]]=\"\",\"\",INDEX(TbNome[],MATCH(TbBase[[#This Row],[Funcionário responsável]],TbNome[Nome + àrea],0),2))","v":"Diretoria"}]
[null,"Atividade 6",null,"Anderson - Diretoria","2023-09-01",null,null,{"$f":"IF(AND(TbBase[[#This Row],[Data final programada]]=\"\",TbBase[[#This Row],[Data início]]=\"\",TbBase[[#This Row],[Data final]]=\"\"),\"\",\nIF(AND(TbBase[[#This Row],[Data final programada]]<>\"\",TbBase[[#This Row],[Data início]]=\"\",TbBase[[#This Row],[Data final]]=\"\",TODAY()<=TbBase[[#This Row],[Data final programada]]),\"Não iniciado\",\nIF(AND(TbBase[[#This Row],[Data final programada]]<>\"\",TbBase[[#This Row],[Data início]]<>\"\",TbBase[[#This Row],[Data final]]=\"\",TODAY()<=TbBase[[#This Row],[Data final programada]]),\"Em andamento\",\nIF(AND(TbBase[[#This Row],[Data final programada]]<>\"\",TbBase[[#This Row],[Data final]]=\"\",TODAY()>TbBase[[#This Row],[Data final programada]]),\"Atrasado\",\nIF(AND(TbBase[[#This Row],[Data final programada]]<>\"\",TbBase[[#This Row],[Data final]]<>\"\",TbBase[[#This Row],[Data final]]>TbBase[[#This Row],[Data final programada]]),\"Finalizado em atraso\",\nIF(AND(TbBase[[#This Row],[Data final programada]]<>\"\",TbBase[[#This Row],[Data final]]<>\"\",TbBase[[#This Row],[Data final]]<=TbBase[[#This Row],[Data final programada]]),\"Finalizado no prazo\"))))))","v":"Atrasado"},null,{"$f":"IF(AND(TbBase[[#This Row],[Data final programada]]=\"\",TbBase[[#This Row],[Data início]]=\"\",TbBase[[#This Row],[Data final]]=\"\"),\"\",\nIF(AND(TbBase[[#This Row],[Data final programada]]<>\"\",TbBase[[#This Row],[Data início]]=\"\",TbBase[[#This Row],[Data final]]=\"\"),PROPER(TEXT(TbBase[[#This Row],[Data final programada]],\"mmm\")),\nIF(AND(TbBase[[#This Row],[Data final programada]]<>\"\",TbBase[[#This Row],[Data início]]<>\"\",TbBase[[#This Row],[Data final]]=\"\"),PROPER(TEXT(TbBase[[#This Row],[Data início]],\"mmm\")),\nIF(AND(TbBase[[#This Row],[Data final programada]]<>\"\",TbBase[[#This Row],[Data final]]<>\"\"),PROPER(TEXT(TbBase[[#This Row],[Data final]],\"mmm\"))))))","v":"Set"},{"$f":"IF(AND(TbBase[[#This Row],[Data final programada]]=\"\",TbBase[[#This Row],[Data início]]=\"\",TbBase[[#This Row],[Data final]]=\"\"),\"\",\nIF(AND(TbBase[[#This Row],[Data final programada]]<>\"\",TbBase[[#This Row],[Data início]]=\"\",TbBase[[#This Row],[Data final]]=\"\"),YEAR(TbBase[[#This Row],[Data final programada]]),\nIF(AND(TbBase[[#This Row],[Data final programada]]<>\"\",TbBase[[#This Row],[Data início]]<>\"\",TbBase[[#This Row],[Data final]]=\"\"),YEAR(TbBase[[#This Row],[Data início]]),\nIF(AND(TbBase[[#This Row],[Data final programada]]<>\"\",TbBase[[#This Row],[Data final]]<>\"\"),YEAR(TbBase[[#This Row],[Data final]])))))","v":2023},{"$f":"IF(TbBase[[#This Row],[Funcionário responsável]]=\"\",\"\",INDEX(TbNome[],MATCH(TbBase[[#This Row],[Funcionário responsável]],TbNome[Nome + àrea],0),2))","v":"Diretoria"}]
[null,"Emissão de certificado",null,"Anderson - Diretoria","2023-10-10",null,null,{"$f":"IF(AND(TbBase[[#This Row],[Data final programada]]=\"\",TbBase[[#This Row],[Data início]]=\"\",TbBase[[#This Row],[Data final]]=\"\"),\"\",\nIF(AND(TbBase[[#This Row],[Data final programada]]<>\"\",TbBase[[#This Row],[Data início]]=\"\",TbBase[[#This Row],[Data final]]=\"\",TODAY()<=TbBase[[#This Row],[Data final programada]]),\"Não iniciado\",\nIF(AND(TbBase[[#This Row],[Data final programada]]<>\"\",TbBase[[#This Row],[Data início]]<>\"\",TbBase[[#This Row],[Data final]]=\"\",TODAY()<=TbBase[[#This Row],[Data final programada]]),\"Em andamento\",\nIF(AND(TbBase[[#This Row],[Data final programada]]<>\"\",TbBase[[#This Row],[Data final]]=\"\",TODAY()>TbBase[[#This Row],[Data final programada]]),\"Atrasado\",\nIF(AND(TbBase[[#This Row],[Data final programada]]<>\"\",TbBase[[#This Row],[Data final]]<>\"\",TbBase[[#This Row],[Data final]]>TbBase[[#This Row],[Data final programada]]),\"Finalizado em atraso\",\nIF(AND(TbBase[[#This Row],[Data final programada]]<>\"\",TbBase[[#This Row],[Data final]]<>\"\",TbBase[[#This Row],[Data final]]<=TbBase[[#This Row],[Data final programada]]),\"Finalizado no prazo\"))))))","v":"Atrasado"},null,{"$f":"IF(AND(TbBase[[#This Row],[Data final programada]]=\"\",TbBase[[#This Row],[Data início]]=\"\",TbBase[[#This Row],[Data final]]=\"\"),\"\",\nIF(AND(TbBase[[#This Row],[Data final programada]]<>\"\",TbBase[[#This Row],[Data início]]=\"\",TbBase[[#This Row],[Data final]]=\"\"),PROPER(TEXT(TbBase[[#This Row],[Data final programada]],\"mmm\")),\nIF(AND(TbBase[[#This Row],[Data final programada]]<>\"\",TbBase[[#This Row],[Data início]]<>\"\",TbBase[[#This Row],[Data final]]=\"\"),PROPER(TEXT(TbBase[[#This Row],[Data início]],\"mmm\")),\nIF(AND(TbBase[[#This Row],[Data final programada]]<>\"\",TbBase[[#This Row],[Data final]]<>\"\"),PROPER(TEXT(TbBase[[#This Row],[Data final]],\"mmm\"))))))","v":"Out"},{"$f":"IF(AND(TbBase[[#This Row],[Data final programada]]=\"\",TbBase[[#This Row],[Data início]]=\"\",TbBase[[#This Row],[Data final]]=\"\"),\"\",\nIF(AND(TbBase[[#This Row],[Data final programada]]<>\"\",TbBase[[#This Row],[Data início]]=\"\",TbBase[[#This Row],[Data final]]=\"\"),YEAR(TbBase[[#This Row],[Data final programada]]),\nIF(AND(TbBase[[#This Row],[Data final programada]]<>\"\",TbBase[[#This Row],[Data início]]<>\"\",TbBase[[#This Row],[Data final]]=\"\"),YEAR(TbBase[[#This Row],[Data início]]),\nIF(AND(TbBase[[#This Row],[Data final programada]]<>\"\",TbBase[[#This Row],[Data final]]<>\"\"),YEAR(TbBase[[#This Row],[Data final]])))))","v":2023},{"$f":"IF(TbBase[[#This Row],[Funcionário responsável]]=\"\",\"\",INDEX(TbNome[],MATCH(TbBase[[#This Row],[Funcionário responsável]],TbNome[Nome + àrea],0),2))","v":"Diretoria"}]
[null,"Atividade 4",null,"Anderson - Diretoria","2023-11-05",null,null,{"$f":"IF(AND(TbBase[[#This Row],[Data final programada]]=\"\",TbBase[[#This Row],[Data início]]=\"\",TbBase[[#This Row],[Data final]]=\"\"),\"\",\nIF(AND(TbBase[[#This Row],[Data final programada]]<>\"\",TbBase[[#This Row],[Data início]]=\"\",TbBase[[#This Row],[Data final]]=\"\",TODAY()<=TbBase[[#This Row],[Data final programada]]),\"Não iniciado\",\nIF(AND(TbBase[[#This Row],[Data final programada]]<>\"\",TbBase[[#This Row],[Data início]]<>\"\",TbBase[[#This Row],[Data final]]=\"\",TODAY()<=TbBase[[#This Row],[Data final programada]]),\"Em andamento\",\nIF(AND(TbBase[[#This Row],[Data final programada]]<>\"\",TbBase[[#This Row],[Data final]]=\"\",TODAY()>TbBase[[#This Row],[Data final programada]]),\"Atrasado\",\nIF(AND(TbBase[[#This Row],[Data final programada]]<>\"\",TbBase[[#This Row],[Data final]]<>\"\",TbBase[[#This Row],[Data final]]>TbBase[[#This Row],[Data final programada]]),\"Finalizado em atraso\",\nIF(AND(TbBase[[#This Row],[Data final programada]]<>\"\",TbBase[[#This Row],[Data final]]<>\"\",TbBase[[#This Row],[Data final]]<=TbBase[[#This Row],[Data final programada]]),\"Finalizado no prazo\"))))))","v":"Atrasado"},null,{"$f":"IF(AND(TbBase[[#This Row],[Data final programada]]=\"\",TbBase[[#This Row],[Data início]]=\"\",TbBase[[#This Row],[Data final]]=\"\"),\"\",\nIF(AND(TbBase[[#This Row],[Data final programada]]<>\"\",TbBase[[#This Row],[Data início]]=\"\",TbBase[[#This Row],[Data final]]=\"\"),PROPER(TEXT(TbBase[[#This Row],[Data final programada]],\"mmm\")),\nIF(AND(TbBase[[#This Row],[Data final programada]]<>\"\",TbBase[[#This Row],[Data início]]<>\"\",TbBase[[#This Row],[Data final]]=\"\"),PROPER(TEXT(TbBase[[#This Row],[Data início]],\"mmm\")),\nIF(AND(TbBase[[#This Row],[Data final programada]]<>\"\",TbBase[[#This Row],[Data final]]<>\"\"),PROPER(TEXT(TbBase[[#This Row],[Data final]],\"mmm\"))))))","v":"Nov"},{"$f":"IF(AND(TbBase[[#This Row],[Data final programada]]=\"\",TbBase[[#This Row],[Data início]]=\"\",TbBase[[#This Row],[Data final]]=\"\"),\"\",\nIF(AND(TbBase[[#This Row],[Data final programada]]<>\"\",TbBase[[#This Row],[Data início]]=\"\",TbBase[[#This Row],[Data final]]=\"\"),YEAR(TbBase[[#This Row],[Data final programada]]),\nIF(AND(TbBase[[#This Row],[Data final programada]]<>\"\",TbBase[[#This Row],[Data início]]<>\"\",TbBase[[#This Row],[Data final]]=\"\"),YEAR(TbBase[[#This Row],[Data início]]),\nIF(AND(TbBase[[#This Row],[Data final programada]]<>\"\",TbBase[[#This Row],[Data final]]<>\"\"),YEAR(TbBase[[#This Row],[Data final]])))))","v":2023},{"$f":"IF(TbBase[[#This Row],[Funcionário responsável]]=\"\",\"\",INDEX(TbNome[],MATCH(TbBase[[#This Row],[Funcionário responsável]],TbNome[Nome + àrea],0),2))","v":"Diretoria"}]
[null,"Atividade 5",null,"Maria - Financeiro","2023-12-15","2023-12-05",null,{"$f":"IF(AND(TbBase[[#This Row],[Data final programada]]=\"\",TbBase[[#This Row],[Data início]]=\"\",TbBase[[#This Row],[Data final]]=\"\"),\"\",\nIF(AND(TbBase[[#This Row],[Data final programada]]<>\"\",TbBase[[#This Row],[Data início]]=\"\",TbBase[[#This Row],[Data final]]=\"\",TODAY()<=TbBase[[#This Row],[Data final programada]]),\"Não iniciado\",\nIF(AND(TbBase[[#This Row],[Data final programada]]<>\"\",TbBase[[#This Row],[Data início]]<>\"\",TbBase[[#This Row],[Data final]]=\"\",TODAY()<=TbBase[[#This Row],[Data final programada]]),\"Em andamento\",\nIF(AND(TbBase[[#This Row],[Data final programada]]<>\"\",TbBase[[#This Row],[Data final]]=\"\",TODAY()>TbBase[[#This Row],[Data final programada]]),\"Atrasado\",\nIF(AND(TbBase[[#This Row],[Data final programada]]<>\"\",TbBase[[#This Row],[Data final]]<>\"\",TbBase[[#This Row],[Data final]]>TbBase[[#This Row],[Data final programada]]),\"Finalizado em atraso\",\nIF(AND(TbBase[[#This Row],[Data final programada]]<>\"\",TbBase[[#This Row],[Data final]]<>\"\",TbBase[[#This Row],[Data final]]<=TbBase[[#This Row],[Data final programada]]),\"Finalizado no prazo\"))))))","v":"Atrasado"},null,{"$f":"IF(AND(TbBase[[#This Row],[Data final programada]]=\"\",TbBase[[#This Row],[Data início]]=\"\",TbBase[[#This Row],[Data final]]=\"\"),\"\",\nIF(AND(TbBase[[#This Row],[Data final programada]]<>\"\",TbBase[[#This Row],[Data início]]=\"\",TbBase[[#This Row],[Data final]]=\"\"),PROPER(TEXT(TbBase[[#This Row],[Data final programada]],\"mmm\")),\nIF(AND(TbBase[[#This Row],[Data final programada]]<>\"\",TbBase[[#This Row],[Data início]]<>\"\",TbBase[[#This Row],[Data final]]=\"\"),PROPER(TEXT(TbBase[[#This Row],[Data início]],\"mmm\")),\nIF(AND(TbBase[[#This Row],[Data final programada]]<>\"\",TbBase[[#This Row],[Data final]]<>\"\"),PROPER(TEXT(TbBase[[#This Row],[Data final]],\"mmm\"))))))","v":"Dez"},{"$f":"IF(AND(TbBase[[#This Row],[Data final programada]]=\"\",TbBase[[#This Row],[Data início]]=\"\",TbBase[[#This Row],[Data final]]=\"\"),\"\",\nIF(AND(TbBase[[#This Row],[Data final programada]]<>\"\",TbBase[[#This Row],[Data início]]=\"\",TbBase[[#This Row],[Data final]]=\"\"),YEAR(TbBase[[#This Row],[Data final programada]]),\nIF(AND(TbBase[[#This Row],[Data final programada]]<>\"\",TbBase[[#This Row],[Data início]]<>\"\",TbBase[[#This Row],[Data final]]=\"\"),YEAR(TbBase[[#This Row],[Data início]]),\nIF(AND(TbBase[[#This Row],[Data final programada]]<>\"\",TbBase[[#This Row],[Data final]]<>\"\"),YEAR(TbBase[[#This Row],[Data final]])))))","v":2023},{"$f":"IF(TbBase[[#This Row],[Funcionário responsável]]=\"\",\"\",INDEX(TbNome[],MATCH(TbBase[[#This Row],[Funcionário responsável]],TbNome[Nome + àrea],0),2))","v":"Financeiro"}]
[null,"Atividade 6",null,"Maria - Financeiro","2023-12-15",null,null,{"$f":"IF(AND(TbBase[[#This Row],[Data final programada]]=\"\",TbBase[[#This Row],[Data início]]=\"\",TbBase[[#This Row],[Data final]]=\"\"),\"\",\nIF(AND(TbBase[[#This Row],[Data final programada]]<>\"\",TbBase[[#This Row],[Data início]]=\"\",TbBase[[#This Row],[Data final]]=\"\",TODAY()<=TbBase[[#This Row],[Data final programada]]),\"Não iniciado\",\nIF(AND(TbBase[[#This Row],[Data final programada]]<>\"\",TbBase[[#This Row],[Data início]]<>\"\",TbBase[[#This Row],[Data final]]=\"\",TODAY()<=TbBase[[#This Row],[Data final programada]]),\"Em andamento\",\nIF(AND(TbBase[[#This Row],[Data final programada]]<>\"\",TbBase[[#This Row],[Data final]]=\"\",TODAY()>TbBase[[#This Row],[Data final programada]]),\"Atrasado\",\nIF(AND(TbBase[[#This Row],[Data final programada]]<>\"\",TbBase[[#This Row],[Data final]]<>\"\",TbBase[[#This Row],[Data final]]>TbBase[[#This Row],[Data final programada]]),\"Finalizado em atraso\",\nIF(AND(TbBase[[#This Row],[Data final programada]]<>\"\",TbBase[[#This Row],[Data final]]<>\"\",TbBase[[#This Row],[Data final]]<=TbBase[[#This Row],[Data final programada]]),\"Finalizado no prazo\"))))))","v":"Atrasado"},null,{"$f":"IF(AND(TbBase[[#This Row],[Data final programada]]=\"\",TbBase[[#This Row],[Data início]]=\"\",TbBase[[#This Row],[Data final]]=\"\"),\"\",\nIF(AND(TbBase[[#This Row],[Data final programada]]<>\"\",TbBase[[#This Row],[Data início]]=\"\",TbBase[[#This Row],[Data final]]=\"\"),PROPER(TEXT(TbBase[[#This Row],[Data final programada]],\"mmm\")),\nIF(AND(TbBase[[#This Row],[Data final programada]]<>\"\",TbBase[[#This Row],[Data início]]<>\"\",TbBase[[#This Row],[Data final]]=\"\"),PROPER(TEXT(TbBase[[#This Row],[Data início]],\"mmm\")),\nIF(AND(TbBase[[#This Row],[Data final programada]]<>\"\",TbBase[[#This Row],[Data final]]<>\"\"),PROPER(TEXT(TbBase[[#This Row],[Data final]],\"mmm\"))))))","v":"Dez"},{"$f":"IF(AND(TbBase[[#This Row],[Data final programada]]=\"\",TbBase[[#This Row],[Data início]]=\"\",TbBase[[#This Row],[Data final]]=\"\"),\"\",\nIF(AND(TbBase[[#This Row],[Data final programada]]<>\"\",TbBase[[#This Row],[Data início]]=\"\",TbBase[[#This Row],[Data final]]=\"\"),YEAR(TbBase[[#This Row],[Data final programada]]),\nIF(AND(TbBase[[#This Row],[Data final programada]]<>\"\",TbBase[[#This Row],[Data início]]<>\"\",TbBase[[#This Row],[Data final]]=\"\"),YEAR(TbBase[[#This Row],[Data início]]),\nIF(AND(TbBase[[#This Row],[Data final programada]]<>\"\",TbBase[[#This Row],[Data final]]<>\"\"),YEAR(TbBase[[#This Row],[Data final]])))))","v":2023},{"$f":"IF(TbBase[[#This Row],[Funcionário responsável]]=\"\",\"\",INDEX(TbNome[],MATCH(TbBase[[#This Row],[Funcionário responsável]],TbNome[Nome + àrea],0),2))","v":"Financeiro"}]
[null,"Atividade 5",null,"Maria - Financeiro","2023-10-10",null,null,{"$f":"IF(AND(TbBase[[#This Row],[Data final programada]]=\"\",TbBase[[#This Row],[Data início]]=\"\",TbBase[[#This Row],[Data final]]=\"\"),\"\",\nIF(AND(TbBase[[#This Row],[Data final programada]]<>\"\",TbBase[[#This Row],[Data início]]=\"\",TbBase[[#This Row],[Data final]]=\"\",TODAY()<=TbBase[[#This Row],[Data final programada]]),\"Não iniciado\",\nIF(AND(TbBase[[#This Row],[Data final programada]]<>\"\",TbBase[[#This Row],[Data início]]<>\"\",TbBase[[#This Row],[Data final]]=\"\",TODAY()<=TbBase[[#This Row],[Data final programada]]),\"Em andamento\",\nIF(AND(TbBase[[#This Row],[Data final programada]]<>\"\",TbBase[[#This Row],[Data final]]=\"\",TODAY()>TbBase[[#This Row],[Data final programada]]),\"Atrasado\",\nIF(AND(TbBase[[#This Row],[Data final programada]]<>\"\",TbBase[[#This Row],[Data final]]<>\"\",TbBase[[#This Row],[Data final]]>TbBase[[#This Row],[Data final programada]]),\"Finalizado em atraso\",\nIF(AND(TbBase[[#This Row],[Data final programada]]<>\"\",TbBase[[#This Row],[Data final]]<>\"\",TbBase[[#This Row],[Data final]]<=TbBase[[#This Row],[Data final programada]]),\"Finalizado no prazo\"))))))","v":"Atrasado"},null,{"$f":"IF(AND(TbBase[[#This Row],[Data final programada]]=\"\",TbBase[[#This Row],[Data início]]=\"\",TbBase[[#This Row],[Data final]]=\"\"),\"\",\nIF(AND(TbBase[[#This Row],[Data final programada]]<>\"\",TbBase[[#This Row],[Data início]]=\"\",TbBase[[#This Row],[Data final]]=\"\"),PROPER(TEXT(TbBase[[#This Row],[Data final programada]],\"mmm\")),\nIF(AND(TbBase[[#This Row],[Data final programada]]<>\"\",TbBase[[#This Row],[Data início]]<>\"\",TbBase[[#This Row],[Data final]]=\"\"),PROPER(TEXT(TbBase[[#This Row],[Data início]],\"mmm\")),\nIF(AND(TbBase[[#This Row],[Data final programada]]<>\"\",TbBase[[#This Row],[Data final]]<>\"\"),PROPER(TEXT(TbBase[[#This Row],[Data final]],\"mmm\"))))))","v":"Out"},{"$f":"IF(AND(TbBase[[#This Row],[Data final programada]]=\"\",TbBase[[#This Row],[Data início]]=\"\",TbBase[[#This Row],[Data final]]=\"\"),\"\",\nIF(AND(TbBase[[#This Row],[Data final programada]]<>\"\",TbBase[[#This Row],[Data início]]=\"\",TbBase[[#This Row],[Data final]]=\"\"),YEAR(TbBase[[#This Row],[Data final programada]]),\nIF(AND(TbBase[[#This Row],[Data final programada]]<>\"\",TbBase[[#This Row],[Data início]]<>\"\",TbBase[[#This Row],[Data final]]=\"\"),YEAR(TbBase[[#This Row],[Data início]]),\nIF(AND(TbBase[[#This Row],[Data final programada]]<>\"\",TbBase[[#This Row],[Data final]]<>\"\"),YEAR(TbBase[[#This Row],[Data final]])))))","v":2023},{"$f":"IF(TbBase[[#This Row],[Funcionário responsável]]=\"\",\"\",INDEX(TbNome[],MATCH(TbBase[[#This Row],[Funcionário responsável]],TbNome[Nome + àrea],0),2))","v":"Financeiro"}]

{"sheet":"Lista de tarefas","index":2,"n_rows":12,"n_cols":16,"rows_kept":12,"cut":false,"hidden":false,"merged":[[3,13,3,15]]}
[]
[]
[]
[null,"Nome da atividade","Descrição da atividade","Funcionário responsável","Data final programada","Data início","Data final","Status","Observações",null,null,null,null,"FILTRO"]
[null,"Emissão de certificado",null,"Maria - Financeiro","2023-01-01",null,null,"Atrasado",null,null,null,null,null,"Tipo",2,{"$f":"CHOOSE(O5,\"Área\",\"Funcionário\")","v":"Funcionário"}]
[null,"Lançamento de OS",null,"Maria - Financeiro","2023-02-01",null,null,"Atrasado",null,null,null,null,null,{"$f":"P5","v":"Funcionário"},3,{"$f":"IFERROR(IF($O$5=1,INDEX(Lista_Area,$O$6,0),IF($O$5=2,INDEX(Lista_NomeArea,$O$6,0))),\"\")","v":"Maria - Financeiro"}]
[null,"Atividade 4",null,"Maria - Financeiro","2023-04-01","2023-04-01","2023-04-05","Finalizado em atraso"]
[null,"Atividade 3",null,"Maria - Financeiro","2023-05-01","2023-05-01","2023-05-01","Finalizado no prazo"]
[null,"Atividade 5",null,"Maria - Financeiro","2023-06-01","2023-06-01","2023-06-01","Finalizado no prazo"]
[null,"Atividade 5",null,"Maria - Financeiro","2023-12-15","2023-12-05",null,"Em andamento"]
[null,"Atividade 6",null,"Maria - Financeiro","2023-12-15",null,null,"Não iniciado"]
[null,"Atividade 5",null,"Maria - Financeiro","2023-10-10",null,null,"Não iniciado"]

{"sheet":"Dashboard","index":3,"n_rows":0,"n_cols":0,"rows_kept":0,"cut":false,"hidden":false,"merged":[]}

{"sheet":"Instruções","index":4,"n_rows":42,"n_cols":2,"rows_kept":42,"cut":false,"hidden":false,"merged":[[41,0,41,7],[32,1,32,7],[3,1,3,7],[4,1,4,7],[5,1,5,7],[6,1,6,7],[7,1,7,7],[8,1,8,7],[9,1,9,7],[10,1,10,7],[14,1,14,7],[22,1,22,7],[27,1,27,7],[23,1,23,7],[11,1,12,6],[38,1,38,7],[39,1,39,7],[40,1,40,7],[34,1,34,7],[35,1,35,7],[36,1,36,7],[24,1,24,7],[26,1,26,7],[29,1,29,7],[33,1,33,7],[37,1,37,7]]}
[]
[]
[]
["","REGRAS PARA USO"]
[null,"Muito obrigado por adquirir este produto. É uma grande satisfação tê-lo como cliente."]
[null,"Esta planilha foi planejada e desenvolvida de forma que fosse uma forma prática e fácil para conseguir controlar suas manutenções."]
[null,"Qualquer dúvida, por favor entrar em contato com : contato@almeidaplanilhas.com.br"]
[]
[null,"Planilha 100% editável, para que você possa deixar do jeito que deseja."]
[]
[null,"Planilhas protegidas por Direitos Autorais,"]
[null,"Dessa forma, ao realizar a compra em nossa loja, nossas planilhas NÃO podem ser vendidas, revendidas, distribuídas, publicadas em uma galeria online, hospedadas em um site, ou colocadas em qualquer servidor de uma forma que a torne disponível para o público em geral sem uma autorização por escrito."]
[]
[]
[null,"DICAS INICIAIS"]
["Ø","Geralmente ao abrir a planilha nas primeiras vezes, o Excel apresenta essa mensagem como forma de segurança, basta clicar em \"Habilitar Edição\", para que a planilha funcione corretamente."]
[]
[]
["Ø","Os dashboards estão bloqueados para que o usuário não clique em algum objeto e arraste ele. Caso você queira desbloquear. Basta seguir as seguintes etapas."]
[null,"Obs.: Essas etapas só são válidas após a compra da planilha. Na versão DEMONSTRATIVA, a planilha contém senha."]
[]
[]
[null,"INSTRUÇÕES DE USO"]
["Ø","Cadastro"]
[null,"Cadastre as atividades a serem realizadas, o nome e área de quem irá realizá-las."]
[]
["Ø","Controle de atividades"]
[null,"Controle e programe as suas atividades a serem realizadas."]
[]
["Ø","Lista de atividade"]
[null,"Tenha uma visão de quais são as atividades finalizadas e pendentes de cada pessoa / funcionário."]
[]
["Ø","Dashboard"]
[null,"Será possível realizar as seguintes análises:"]
[null,"-Quantidade de atividades finalizadas e atividades em aberto;"]
[null,"-Conclusão das atividades (%);"]
[null,"-Ranking das atividades mais solictadas;"]
[null,"-Variação de atividades solicitadas durante o ano;"]
[null,"-Tipos de status;"]
[null,"Observação: Todas as análises citadas acima, podem ser análisada no geral ou por determinado funcionário."]
[]
["FAÇA UM ÓTIMO USO"]

{"sheet":"Apoio","index":5,"n_rows":103,"n_cols":32,"rows_kept":103,"cut":false,"hidden":false,"merged":[[1,26,1,31],[2,23,2,24],[2,15,2,16],[1,13,1,16],[1,3,1,11],[1,18,1,24]]}
[null,"TABELAS"]
["ID","Nome das atividades",null,"CAIXAS",null,null,null,null,null,null,null,null,null,"STATUS",null,null,null,null,"QUANTIDADE DE TAREFAS DURANTE O ANO",null,null,null,null,null,null,null,"RANKING DE ATIVIDADES"]
[0,"Todas",null,"Nome da atividade","Status","QTD","Status","Qtd","Status","Qtd","%","% rest.",null,"Status","Qtd","Atividade",null,null,"Nome da atividade","Mês","Contagem de Mês","Mês","Qtd","Atividade",null,null,"Nome da atividade","Qtd",0,"Atividade","Qtd","Rotulo"]
[1,{"$f":"IFERROR(INDEX(Lista_Atividades,A4,1),\"\")","v":"Emissão de certificado"},null,"Atividade 3","Finalizado no prazo",1,"Não iniciado",{"$f":"SUMIF($E$4:$E$1000,G4,$F$4:$F$1000)","v":5},"Atividades finalizadas",{"$f":"SUM($H$7:$H$8)","v":4},{"$f":"IF(SUM($J$4:$J$5)=0,0,J4/SUM($J$4:$J$5))","v":0.2857142857142857},{"$f":"1-K4","v":0.7142857142857143},null,"Não iniciado",{"$f":"IF($Q$4=\"Todas\",SUMIFS($F$4:$F$500,$E$4:$E$500,N4),SUMIFS($F$4:$F$1000,$E$4:$E$1000,N4,$D$4:$D$1000,$Q$4))","v":5},1,{"$f":"INDEX(Dashboard_Lista_Atividades,P4,1)","v":"Todas"},null,"Atividade 3","Mai",1,"Jan",{"$f":"IF($Y$4=\"Todas\",SUMIFS($U$4:$U$1000,$T$4:$T$1000,V4),SUMIFS($U$4:$U$1000,$T$4:$T$1000,V4,$S$4:$S$1000,$Y$4))","v":1},1,{"$f":"INDEX(Dashboard_Lista_Atividades,X4,1)","v":"Todas"},null,"Emissão de certificado",4,{"$f":"(AC3*7)+1","v":1},{"$f":"IF(INDEX($AA$4:$AB$200,AC4,1)=0,\" \",INDEX($AA$4:$AB$200,AC4,1))","v":"Emissão de certificado"},{"$f":"SUMIF($AA$4:$AA$200,AD4,$AB$4:$AB$200)","v":4},{"$f":"IF(AD4=\" \",\"\",AE4)","v":4}]
[2,"Lançamento de OS",null,"Atividade 4","Finalizado em atraso",1,"Em andamento",{"$f":"SUMIF($E$4:$E$1000,G5,$F$4:$F$1000)","v":3},"Atividades em aberto",{"$f":"SUM($H$4:$H$6)","v":10},{"$f":"IF(SUM($J$4:$J$5)=0,0,J5/SUM($J$4:$J$5))","v":0.7142857142857143},{"$f":"1-K5","v":0.2857142857142857},null,"Em andamento",{"$f":"IF($Q$4=\"Todas\",SUMIFS($F$4:$F$500,$E$4:$E$500,N5),SUMIFS($F$4:$F$1000,$E$4:$E$1000,N5,$D$4:$D$1000,$Q$4))","v":3},null,null,null,"Atividade 4","Abr",1,"Fev",{"$f":"IF($Y$4=\"Todas\",SUMIFS($U$4:$U$1000,$T$4:$T$1000,V5),SUMIFS($U$4:$U$1000,$T$4:$T$1000,V5,$S$4:$S$1000,$Y$4))","v":1},null,null,null,"Atividade 5",4,{"$f":"AC4+1","v":2},{"$f":"IF(INDEX($AA$4:$AB$200,AC5,1)=0,\" \",INDEX($AA$4:$AB$200,AC5,1))","v":"Atividade 5"},{"$f":"SUMIF($AA$4:$AA$200,AD5,$AB$4:$AB$200)","v":4},{"$f":"IF(AD5=\" \",\"\",AE5)","v":4}]
[3,"Atividade 3",null,"Atividade 4","Não iniciado",1,"Atrasado",2,null,null,null,null,null,"Atrasado",2,null,null,null,"Atividade 4","Nov",1,"Mar",0,null,null,null,"Atividade 4",2,{"$f":"AC5+1","v":3},"Atividade 4",2,2]
[4,"Atividade 4",null,"Atividade 5","Em andamento",2,"Finalizado no prazo",3,null,null,null,null,null,"Finalizado no prazo",3,null,null,null,"Atividade 5","Dez",1,"Abr",1,null,null,null,"Atividade 6",2,4,"Atividade 6",2,2]
[5,"Atividade 5",null,"Atividade 5","Finalizado no prazo",1,"Finalizado em atraso",1,null,null,null,null,null,"Finalizado em atraso",1,null,null,null,"Atividade 5","Jun",2,"Mai",1,null,null,null,"Lançamento de OS",1,5,"Lançamento de OS",1,1]
[6,"Atividade 6",null,"Atividade 5","Não iniciado",1,null,null,null,null,null,null,null,null,null,null,null,null,"Atividade 5","Out",1,"Jun",3,null,null,null,"Atividade 3",1,6,"Atividade 3",1,1]
[7,"Atividade 7",null,"Atividade 6","Não iniciado",2,null,null,null,null,null,null,null,null,null,null,null,null,"Atividade 6","Dez",1,"Jul",0,null,null,null,null,null,7," ",0,""]
[8,"Atividade 8",null,"Emissão de certificado","Atrasado",1,null,null,null,null,null,null,null,null,null,null,null,null,"Atividade 6","Set",1,"Ago",0]
[9,"Atividade 9",null,"Emissão de certificado","Em andamento",1,null,null,null,null,null,null,null,null,null,null,null,null,"Emissão de certificado","Jan",1,"Set",1]
[10,"Atividade 10",null,"Emissão de certificado","Finalizado no prazo",1,null,null,null,null,null,null,null,null,null,null,null,null,"Emissão de certificado","Nov",1,"Out",2]
[11,"Atividade 11",null,"Emissão de certificado","Não iniciado",1,null,null,null,null,null,null,null,null,null,null,null,null,"Emissão de certificado","Jun",1,"Nov",2]
[12,"",null,"Lançamento de OS","Atrasado",1,null,null,null,null,null,null,null,null,null,null,null,null,"Emissão de certificado","Out",1,"Dez",2]
[13,"",null,null,null,null,null,null,null,null,null,null,null,null,null,null,null,null,"Lançamento de OS","Fev",1]
[14,""]
[15,""]
[16,""]
[17,""]
[18,""]
[19,""]
[20,""]
[21,""]
[22,""]
[23,""]
[24,""]
[25,""]
[26,""]
[27,""]
[28,""]
[29,""]
[30,""]
[31,""]
[32,""]
[33,{"$f":"IFERROR(INDEX(Lista_Atividades,A36,1),\"\")","v":""}]
[34,""]
[35,""]
[36,""]
[37,""]
[38,""]
[39,""]
[40,""]
[41,""]
[42,""]
[43,""]
[44,""]
[45,""]
[46,""]
[47,""]
[48,""]
[49,""]
[50,""]
[51,""]
[52,""]
[53,""]
[54,""]
[55,""]
[56,""]
[57,""]
[58,""]
[59,""]
[60,""]
[61,""]
[62,""]
[63,""]
[64,""]
[65,{"$f":"IFERROR(INDEX(Lista_Atividades,A68,1),\"\")","v":""}]
[66,""]
[67,""]
[68,""]
[69,""]
[70,""]
[71,""]
[72,""]
[73,""]
[74,""]
[75,""]
[76,""]
[77,""]
[78,""]
[79,""]
[80,""]
[81,""]
[82,""]
[83,""]
[84,""]
[85,""]
[86,""]
[87,""]
[88,""]
[89,""]
[90,""]
[91,""]
[92,""]
[93,""]
[94,""]
[95,""]
[96,""]
[97,{"$f":"IFERROR(INDEX(Lista_Atividades,A100,1),\"\")","v":""}]
[98,""]
[99,""]
[100,""]